[Event "16th EWICC 2015"]
[Site "Kutaisi"]
[Date "2015.06.01"]
[Round "1"]
[White "Tedoshvili, Ana"]
[Black "Schleining, Zoya"]
[Result "0-1"]
[ECO "B90"]
[WhiteElo "1805"]
[BlackElo "2375"]
[Annotator "Robot 11"]
[PlyCount "58"]
[EventDate "2015.??.??"]
[EventCountry "GEO"]
[TimeControl "900+10"]

1. e4 {[%emt 0:00:02]} c5 {[%emt 0:00:01]} 2. Nf3 {[%emt 0:00:03]} d6 {[%emt 0:
00:02]} 3. d4 {[%emt 0:00:02]} cxd4 {[%emt 0:00:02]} 4. Nxd4 {[%emt 0:00:02]}
Nf6 {[%emt 0:00:02]} 5. Nc3 {[%emt 0:00:04]} a6 {[%emt 0:00:02]} 6. Be3 {[%emt
0:00:38]} e6 {[%emt 0:00:08]} 7. Be2 {[%emt 0:00:38]} b5 {[%emt 0:00:22]} 8. a3
{[%emt 0:00:26]} Bb7 {[%emt 0:00:03]} 9. f3 {[%emt 0:00:35]} Be7 {[%emt 0:00:
07]} 10. O-O {[%emt 0:00:07]} O-O {[%emt 0:00:09]} 11. Kh1 {[%emt 0:00:10]} Nc6
{[%emt 0:00:19]} 12. Bd3 {[%emt 0:01:32]} Qc7 {[%emt 0:00:10]} 13. f4 {[%emt 0:
00:40]} Nxd4 {[%emt 0:00:23]} 14. Bxd4 {[%emt 0:00:09]} e5 {[%emt 0:00:18]} 15.
Be3 {[%emt 0:00:43]} Rad8 {[%emt 0:00:34]} 16. Qf3 {[%emt 0:00:25]} Bc6 {[%emt
0:01:53]} 17. Nd5 {[%emt 0:01:21]} Bxd5 {[%emt 0:00:33]} 18. exd5 {[%emt 0:00:
05]} Rfe8 {[%emt 0:00:32]} 19. f5 {[%emt 0:02:34]} e4 {[%emt 0:00:55]} 20. Bxe4
{[%emt 0:01:29]} Nxe4 {[%emt 0:00:04]} 21. Qxe4 {[%emt 0:00:37]} Bg5 {[%emt 0:
00:13]} 22. Qg4 {[%emt 0:00:25]} Bxe3 {[%emt 0:00:07]} 23. f6 {[%emt 0:00:07]}
g6 {[%emt 0:00:06]} 24. Qh3 {[%emt 0:01:30]} h5 {[%emt 0:01:39]} 25. Rae1 {
[%emt 0:01:41]} Bh6 {[%emt 0:01:16]} 26. Rxe8+ {[%emt 0:00:02]} Rxe8 {[%emt 0:
00:02]} 27. g4 {[%emt 0:00:32]} Qc4 {[%emt 0:00:18]} 28. gxh5 {[%emt 0:02:29]}
Qxd5+ {[%emt 0:00:17]} 29. Kg1 {[%emt 0:00:02]} Be3+ {[%emt 0:00:11]} 0-1

[Event "16th EWICC 2015"]
[Site "Kutaisi"]
[Date "2015.06.01"]
[Round "1"]
[White "Tereladze, Sopiko"]
[Black "Stefanova, Antoaneta"]
[Result "0-1"]
[ECO "D11"]
[WhiteElo "2128"]
[BlackElo "2512"]
[Annotator "Robot 11"]
[PlyCount "52"]
[EventDate "2015.??.??"]
[EventCountry "GEO"]
[TimeControl "900+10"]

1. d4 {[%emt 0:00:00]} d5 {[%emt 0:00:04]} 2. c4 {[%emt 0:00:11]} c6 {[%emt 0:
00:01]} 3. Nf3 {[%emt 0:00:07]} Nf6 {[%emt 0:00:06]} 4. Qc2 {[%emt 0:00:05]} g6
{[%emt 0:00:06]} 5. e3 {[%emt 0:00:51]} Bg7 {[%emt 0:01:15]} 6. Nc3 {[%emt 0:
00:02]} O-O {[%emt 0:00:37]} 7. h3 {[%emt 0:00:45]} Na6 {[%emt 0:02:30]} 8. a3
{[%emt 0:05:20]} c5 {[%emt 0:00:45]} 9. cxd5 {[%emt 0:00:21]} cxd4 {[%emt 0:01:
32]} 10. exd4 {[%emt 0:00:59]} Nc7 {[%emt 0:00:58]} 11. Bc4 {[%emt 0:00:35]} a6
{[%emt 0:00:36]} 12. O-O {[%emt 0:00:19]} b5 {[%emt 0:00:56]} 13. Bb3 {[%emt 0:
00:45]} Bb7 {[%emt 0:00:07]} 14. Ne5 {[%emt 0:00:12]} Ncxd5 {[%emt 0:00:18]}
15. Nxd5 {[%emt 0:00:28]} Bxd5 {[%emt 0:00:03]} 16. Bxd5 {[%emt 0:00:46]} Nxd5
{[%emt 0:00:36]} 17. Re1 {[%emt 0:00:19]} Rc8 {[%emt 0:00:29]} 18. Qb3 {[%emt
0:00:02]} e6 {[%emt 0:00:23]} 19. Bd2 {[%emt 0:00:50]} Qh4 {[%emt 0:02:45]} 20.
Bb4 {[%emt 0:00:24]} Rfd8 {[%emt 0:01:24]} 21. Bc5 {[%emt 0:00:38]} Qg5 {[%emt
0:00:46]} 22. Nf3 {[%emt 0:00:17]} Qf5 {[%emt 0:00:25]} 23. Rad1 {[%emt 0:00:
15]} Nf4 {[%emt 0:00:10]} 24. Qe3 {[%emt 0:00:22]} Bh6 {[%emt 0:00:21]} 25. Qe4
{[%emt 0:00:02]} Qxe4 {[%emt 0:00:02]} 26. Rxe4 Rxc5 0-1

[Event "16th EWICC 2015"]
[Site "Kutaisi"]
[Date "2015.06.01"]
[Round "1"]
[White "Vakhania, Alexandra"]
[Black "Gunina, Valentina"]
[Result "0-1"]
[ECO "D03"]
[WhiteElo "2130"]
[BlackElo "2535"]
[Annotator "Robot 11"]
[PlyCount "122"]
[EventDate "2015.??.??"]
[EventCountry "GEO"]
[TimeControl "900+10"]

1. Nf3 {[%emt 0:00:06]} d5 {[%emt 0:00:02]} 2. d4 {[%emt 0:00:04]} Nf6 {[%emt
0:00:02]} 3. Bg5 {[%emt 0:00:02]} Ne4 {[%emt 0:00:13]} 4. Bh4 {[%emt 0:00:01]}
c6 {[%emt 0:00:12]} 5. c3 {[%emt 0:00:03]} g6 {[%emt 0:00:33]} 6. e3 {[%emt 0:
00:07]} Bg7 {[%emt 0:00:07]} 7. Bd3 {[%emt 0:00:01]} O-O {[%emt 0:00:07]} 8.
Nbd2 {[%emt 0:00:01]} Bf5 {[%emt 0:00:14]} 9. Qc2 {[%emt 0:00:02]} Nd6 {[%emt
0:00:56]} 10. e4 {[%emt 0:00:53]} dxe4 {[%emt 0:00:08]} 11. Nxe4 {[%emt 0:00:
02]} Bxe4 {[%emt 0:02:05]} 12. Bxe4 {[%emt 0:00:02]} Re8 {[%emt 0:00:01]} 13.
O-O-O {[%emt 0:01:00]} Nd7 {[%emt 0:00:24]} 14. Kb1 {[%emt 0:00:03]} a5 {[%emt
0:00:09]} 15. Bd3 {[%emt 0:00:12]} b5 {[%emt 0:00:07]} 16. Bg3 {[%emt 0:00:10]}
Qb6 {[%emt 0:00:22]} 17. Ne5 {[%emt 0:00:12]} Nf8 {[%emt 0:00:29]} 18. h4 {
[%emt 0:00:01]} b4 {[%emt 0:00:01]} 19. h5 {[%emt 0:00:24]} bxc3 {[%emt 0:00:
12]} 20. Qxc3 {[%emt 0:00:01]} Rab8 {[%emt 0:00:29]} 21. hxg6 {[%emt 0:00:02]}
hxg6 {[%emt 0:00:02]} 22. Nxc6 {[%emt 0:05:29]} Rbc8 {[%emt 0:00:21]} 23. Bxd6
{[%emt 0:00:12]} exd6 {[%emt 0:01:32]} 24. Ne7+ {[%emt 0:00:09]} Rxe7 {[%emt 0:
00:01]} 25. Qxc8 {[%emt 0:00:02]} Rc7 {[%emt 0:00:22]} 26. Qa6 {[%emt 0:01:26]}
Qxd4 {[%emt 0:00:03]} 27. Rd2 {[%emt 0:00:03]} Qb4 {[%emt 0:01:17]} 28. Re2 {
[%emt 0:00:54]} Re7 {[%emt 0:01:06]} 29. Qb5 {[%emt 0:00:41]} Rb7 {[%emt 0:00:
42]} 30. Qxb4 {[%emt 0:00:05]} Rxb4 {[%emt 0:00:03]} 31. b3 {[%emt 0:00:20]} d5
{[%emt 0:00:06]} 32. Re8 {[%emt 0:00:53]} a4 {[%emt 0:00:31]} 33. Bc2 {[%emt 0:
00:17]} Bf6 {[%emt 0:00:33]} 34. Rd1 {[%emt 0:00:22]} Rb5 {[%emt 0:00:52]} 35.
Ra8 {[%emt 0:00:03]} axb3 {[%emt 0:00:05]} 36. Bxb3 {[%emt 0:00:02]} d4 {[%emt
0:00:08]} 37. Kc2 {[%emt 0:00:24]} Rc5+ {[%emt 0:00:45]} 38. Kd3 {[%emt 0:00:
08]} Rc7 {[%emt 0:00:04]} 39. Rd2 {[%emt 0:00:27]} Kg7 {[%emt 0:00:22]} 40. Rc2
{[%emt 0:00:01]} Rb7 {[%emt 0:00:03]} 41. Rac8 {[%emt 0:01:50]} Be5 {[%emt 0:
00:49]} 42. Ke4 {[%emt 0:01:17]} Re7 {[%emt 0:00:11]} 43. Kd3 {[%emt 0:01:10]}
g5 {[%emt 0:00:11]} 44. R2c5 {[%emt 0:00:15]} Nd7 {[%emt 0:00:26]} 45. Rb5 {
[%emt 0:00:27]} Bf6 {[%emt 0:00:19]} 46. a4 {[%emt 0:00:16]} Ne5+ {[%emt 0:00:
19]} 47. Kd2 {[%emt 0:00:04]} g4 {[%emt 0:00:04]} 48. a5 {[%emt 0:00:11]} Bg5+
{[%emt 0:00:01]} 49. Kd1 {[%emt 0:00:01]} d3 {[%emt 0:00:32]} 50. a6 {[%emt 0:
00:05]} d2 {[%emt 0:00:22]} 51. Rb7 {[%emt 0:00:16]} Nd7 {[%emt 0:00:03]} 52.
Kc2 {[%emt 0:00:25]} Re1 {[%emt 0:00:11]} 53. Kd3 {[%emt 0:00:40]} Ne5+ {[%emt
0:00:32]} 54. Kd4 {[%emt 0:00:13]} Rb1 {[%emt 0:00:56]} 55. Bc2 {[%emt 0:00:32]
} Rc1 {[%emt 0:00:06]} 56. Kxe5 {[%emt 0:00:44]} Rxc2 {[%emt 0:00:03]} 57. Rxc2
{[%emt 0:00:13]} d1=Q {[%emt 0:00:02]} 58. Rcc7 {[%emt 0:00:10]} Bf6+ {[%emt 0:
00:23]} 59. Kf5 {[%emt 0:00:16]} Qd5+ {[%emt 0:00:03]} 60. Kxg4 {[%emt 0:00:02]
} Qxg2+ {[%emt 0:00:01]} 61. Kf5 {[%emt 0:00:06]} Qf3# {[%emt 0:00:03]} 0-1

[Event "16th EWICC 2015"]
[Site "Kutaisi"]
[Date "2015.06.01"]
[Round "2"]
[White "Galliamova, Alisa"]
[Black "Charkhalashvili, Inga"]
[Result "0-1"]
[ECO "A45"]
[WhiteElo "2478"]
[BlackElo "2318"]
[Annotator "Robot 11"]
[PlyCount "148"]
[EventDate "2015.??.??"]
[EventCountry "GEO"]
[TimeControl "900+10"]

1. d4 {[%emt 0:00:02]} Nf6 {[%emt 0:00:02]} 2. g3 {[%emt 0:00:04]} d5 {[%emt 0:
00:06]} 3. Bg2 {[%emt 0:00:01]} e6 {[%emt 0:00:01]} 4. Nf3 {[%emt 0:00:15]} Be7
{[%emt 0:00:04]} 5. O-O {[%emt 0:00:03]} O-O {[%emt 0:00:02]} 6. b3 {[%emt 0:
00:01]} c5 {[%emt 0:00:05]} 7. e3 {[%emt 0:00:10]} Nc6 {[%emt 0:00:05]} 8. Bb2
{[%emt 0:00:04]} b6 {[%emt 0:00:22]} 9. Ne5 {[%emt 0:00:10]} Bb7 {[%emt 0:00:
14]} 10. Nd2 {[%emt 0:00:03]} Rc8 {[%emt 0:00:15]} 11. f4 {[%emt 0:00:10]} Bd6
{[%emt 0:00:58]} 12. c4 {[%emt 0:00:15]} Qe7 {[%emt 0:00:16]} 13. g4 {[%emt 0:
03:04]} dxc4 {[%emt 0:00:59]} 14. g5 {[%emt 0:02:32]} Nd5 {[%emt 0:01:12]} 15.
Nxc6 {[%emt 0:01:38]} Bxc6 {[%emt 0:00:08]} 16. Nxc4 {[%emt 0:00:02]} Bb8 {
[%emt 0:01:01]} 17. Qe2 {[%emt 0:01:05]} Rfd8 {[%emt 0:00:55]} 18. Rad1 {[%emt
0:00:04]} Nb4 {[%emt 0:01:46]} 19. dxc5 {[%emt 0:00:24]} Bxg2 {[%emt 0:00:35]}
20. Kxg2 {[%emt 0:00:14]} bxc5 {[%emt 0:00:10]} 21. Ba1 {[%emt 0:00:41]} Nd5 {
[%emt 0:01:01]} 22. Rf3 {[%emt 0:00:38]} Nc7 {[%emt 0:02:05]} 23. Rh3 {[%emt 0:
00:21]} Ne8 {[%emt 0:00:38]} 24. Qh5 {[%emt 0:00:24]} Qb7+ {[%emt 0:00:06]} 25.
Kg1 {[%emt 0:01:04]} Qe4 {[%emt 0:00:19]} 26. Rf1 {[%emt 0:00:04]} Qg6 {[%emt
0:01:17]} 27. Qe2 {[%emt 0:00:28]} Qd3 {[%emt 0:00:40]} 28. Qg2 {[%emt 0:00:02]
} Nd6 {[%emt 0:00:52]} 29. Bf6 {[%emt 0:01:01]} Nxc4 {[%emt 0:00:23]} 30. bxc4
{[%emt 0:00:33]} Rd7 {[%emt 0:00:17]} 31. e4 {[%emt 0:00:11]} Qxc4 {[%emt 0:00:
11]} 32. Qg4 {[%emt 0:00:18]} Qxe4 {[%emt 0:00:10]} 33. Bc3 {[%emt 0:00:40]}
Rcd8 {[%emt 0:00:34]} 34. Re1 {[%emt 0:00:28]} Qf5 {[%emt 0:00:10]} 35. Qxf5 {
[%emt 0:00:06]} exf5 {[%emt 0:00:01]} 36. Rhe3 {[%emt 0:00:01]} Kf8 {[%emt 0:
00:21]} 37. Be5 {[%emt 0:00:12]} Bxe5 {[%emt 0:00:06]} 38. Rxe5 {[%emt 0:00:02]
} Rd5 {[%emt 0:00:04]} 39. Kf2 {[%emt 0:01:04]} c4 {[%emt 0:00:16]} 40. Rxd5 {
[%emt 0:00:49]} Rxd5 {[%emt 0:00:01]} 41. Rc1 {[%emt 0:00:01]} Rd4 {[%emt 0:00:
12]} 42. Ke3 {[%emt 0:00:11]} Rd3+ {[%emt 0:00:15]} 43. Ke2 {[%emt 0:00:08]}
Rh3 {[%emt 0:00:05]} 44. Rxc4 {[%emt 0:00:07]} Rxh2+ {[%emt 0:00:01]} 45. Ke3 {
[%emt 0:00:02]} Rxa2 {[%emt 0:00:02]} 46. Rc8+ {[%emt 0:00:02]} Ke7 {[%emt 0:
00:01]} 47. Rc7+ {[%emt 0:00:01]} Ke6 {[%emt 0:00:04]} 48. Rc6+ {[%emt 0:00:06]
} Kd7 {[%emt 0:00:01]} 49. Rc5 {[%emt 0:00:02]} Ra3+ {[%emt 0:00:08]} 50. Kd4 {
[%emt 0:00:10]} g6 {[%emt 0:00:17]} 51. Ke5 {[%emt 0:01:05]} Ra6 {[%emt 0:00:
02]} 52. Rb5 {[%emt 0:00:17]} Re6+ {[%emt 0:00:05]} 53. Kd5 {[%emt 0:00:01]}
Rb6 {[%emt 0:00:21]} 54. Ra5 {[%emt 0:00:14]} a6 {[%emt 0:00:00]} 55. Ra1 {
[%emt 0:00:01]} Ke7 {[%emt 0:00:37]} 56. Rc1 {[%emt 0:00:33]} Rb5+ {[%emt 0:00:
09]} 57. Kd4 {[%emt 0:00:06]} Rb4+ {[%emt 0:00:08]} 58. Ke3 {[%emt 0:00:02]}
Rb3+ {[%emt 0:00:21]} 59. Kf2 {[%emt 0:00:26]} Kf8 {[%emt 0:00:01]} 60. Ra1 {
[%emt 0:00:16]} Rb6 {[%emt 0:00:06]} 61. Rc1 {[%emt 0:00:32]} a5 {[%emt 0:00:
12]} 62. Rc8+ {[%emt 0:00:02]} Kg7 {[%emt 0:00:00]} 63. Ra8 {[%emt 0:00:01]}
Rb4 {[%emt 0:00:17]} 64. Kf3 {[%emt 0:00:10]} Ra4 {[%emt 0:00:17]} 65. Ra7 {
[%emt 0:00:04]} Ra3+ {[%emt 0:00:03]} 66. Kf2 {[%emt 0:00:02]} a4 {[%emt 0:00:
01]} 67. Kg2 {[%emt 0:00:36]} Ra1 {[%emt 0:00:09]} 68. Kh2 {[%emt 0:00:44]} a3
{[%emt 0:00:03]} 69. Kg2 {[%emt 0:00:01]} a2 {[%emt 0:00:07]} 70. Kh2 {[%emt 0:
00:02]} h6 {[%emt 0:00:09]} 71. gxh6+ {[%emt 0:00:43]} Kxh6 {[%emt 0:00:01]}
72. Kg2 {[%emt 0:00:02]} Kh5 {[%emt 0:00:13]} 73. Ra4 {[%emt 0:00:07]} Kg4 {
[%emt 0:00:04]} 74. Kh2 {[%emt 0:00:04]} Kf3 {[%emt 0:00:15]} 0-1

[Event "16th EWICC 2015"]
[Site "Kutaisi"]
[Date "2015.06.01"]
[Round "2"]
[White "Gunina, Valentina"]
[Black "Mammadova, Gulnar"]
[Result "1-0"]
[ECO "A96"]
[WhiteElo "2535"]
[BlackElo "2293"]
[Annotator "Robot 11"]
[PlyCount "57"]
[EventDate "2015.??.??"]
[EventCountry "GEO"]
[TimeControl "900+10"]

1. d4 {[%emt 0:00:05]} e6 {[%emt 0:00:02]} 2. c4 {[%emt 0:00:03]} f5 {[%emt 0:
00:02]} 3. Nf3 {[%emt 0:00:04]} Nf6 {[%emt 0:00:02]} 4. g3 {[%emt 0:00:02]} Be7
{[%emt 0:00:14]} 5. Bg2 {[%emt 0:00:04]} d6 {[%emt 0:00:14]} 6. O-O {[%emt 0:
00:05]} O-O {[%emt 0:00:02]} 7. Nc3 {[%emt 0:00:14]} c6 {[%emt 0:00:53]} 8. Qc2
{[%emt 0:00:09]} Qe8 {[%emt 0:00:02]} 9. e4 {[%emt 0:00:09]} fxe4 {[%emt 0:00:
42]} 10. Nxe4 {[%emt 0:00:03]} Qh5 {[%emt 0:00:56]} 11. Re1 {[%emt 0:00:19]}
Nbd7 {[%emt 0:01:36]} 12. Neg5 {[%emt 0:00:07]} e5 {[%emt 0:00:25]} 13. Ne6 {
[%emt 0:00:04]} Rf7 {[%emt 0:00:03]} 14. Nfg5 {[%emt 0:00:56]} Nf8 {[%emt 0:01:
13]} 15. Nxf7 {[%emt 0:00:47]} Nxe6 {[%emt 0:01:00]} 16. dxe5 {[%emt 0:00:06]}
Kxf7 {[%emt 0:00:56]} 17. exf6 {[%emt 0:00:04]} Bxf6 {[%emt 0:00:01]} 18. Be3 {
[%emt 0:00:06]} Bd7 {[%emt 0:01:00]} 19. Rad1 {[%emt 0:00:03]} Be7 {[%emt 0:00:
05]} 20. f4 {[%emt 0:00:47]} Nf8 {[%emt 0:01:15]} 21. Bd4 {[%emt 0:00:14]} Ne6
{[%emt 0:00:17]} 22. Bf2 {[%emt 0:00:19]} Bf8 {[%emt 0:00:29]} 23. f5 {[%emt 0:
00:37]} Ng5 {[%emt 0:00:10]} 24. Qb3 {[%emt 0:00:03]} Nh3+ {[%emt 0:00:55]} 25.
Bxh3 {[%emt 0:00:11]} Qxh3 {[%emt 0:00:03]} 26. c5+ {[%emt 0:00:04]} d5 {[%emt
0:00:11]} 27. Qxb7 {[%emt 0:00:07]} Rd8 {[%emt 0:00:08]} 28. Qc7 {[%emt 0:00:
03]} Be7 {[%emt 0:00:07]} 29. Rxe7+ {[%emt 0:00:05]} 1-0

[Event "16th EWICC 2015"]
[Site "Kutaisi"]
[Date "2015.06.01"]
[Round "2"]
[White "Guramishvili, Sopiko"]
[Black "Arabidze, Meri"]
[Result "1/2-1/2"]
[ECO "E32"]
[WhiteElo "2370"]
[BlackElo "2403"]
[Annotator "Robot 11"]
[PlyCount "82"]
[EventDate "2015.??.??"]
[EventCountry "GEO"]
[TimeControl "900+10"]

1. d4 {[%emt 0:00:03]} Nf6 {[%emt 0:00:01]} 2. c4 {[%emt 0:00:01]} e6 {[%emt 0:
00:01]} 3. Nc3 {[%emt 0:00:02]} Bb4 {[%emt 0:00:02]} 4. Qc2 {[%emt 0:00:02]}
O-O {[%emt 0:00:03]} 5. Nf3 {[%emt 0:00:02]} d6 {[%emt 0:00:03]} 6. Bg5 {[%emt
0:00:19]} Nbd7 {[%emt 0:00:18]} 7. e3 {[%emt 0:00:09]} h6 {[%emt 0:00:07]} 8.
Bh4 {[%emt 0:00:03]} b6 {[%emt 0:00:53]} 9. Be2 {[%emt 0:00:09]} Bb7 {[%emt 0:
00:15]} 10. O-O {[%emt 0:00:06]} Bxc3 {[%emt 0:00:04]} 11. Qxc3 {[%emt 0:00:54]
} Ne4 {[%emt 0:00:10]} 12. Qc2 {[%emt 0:00:20]} Qe8 {[%emt 0:00:04]} 13. Nd2 {
[%emt 0:00:54]} f5 {[%emt 0:00:42]} 14. f3 {[%emt 0:00:44]} Nxd2 {[%emt 0:00:
18]} 15. Qxd2 {[%emt 0:00:02]} e5 {[%emt 0:00:19]} 16. b4 {[%emt 0:01:35]} a5 {
[%emt 0:00:27]} 17. b5 {[%emt 0:00:47]} f4 {[%emt 0:00:57]} 18. Bf2 {[%emt 0:
00:27]} fxe3 {[%emt 0:01:30]} 19. Bxe3 {[%emt 0:00:02]} exd4 {[%emt 0:00:07]}
20. Bxd4 {[%emt 0:00:02]} Qf7 {[%emt 0:00:49]} 21. Rae1 {[%emt 0:02:32]} Nc5 {
[%emt 0:00:48]} 22. Ba1 {[%emt 0:02:44]} Rae8 {[%emt 0:01:16]} 23. Qc3 {[%emt
0:00:08]} Bc8 {[%emt 0:00:53]} 24. Bd3 {[%emt 0:01:34]} Nxd3 {[%emt 0:02:23]}
25. Qxd3 {[%emt 0:00:02]} Be6 {[%emt 0:00:00]} 26. Rc1 {[%emt 0:00:22]} Bf5 {
[%emt 0:00:03]} 27. Qd4 {[%emt 0:00:24]} Re2 {[%emt 0:00:12]} 28. Rf2 {[%emt 0:
00:39]} Rfe8 {[%emt 0:00:05]} 29. Bc3 {[%emt 0:00:39]} Qg6 {[%emt 0:01:28]} 30.
a3 {[%emt 0:00:17]} Rxf2 {[%emt 0:00:46]} 31. Kxf2 {[%emt 0:00:35]} Bd3 {[%emt
0:00:01]} 32. Re1 {[%emt 0:00:17]} Rxe1 {[%emt 0:00:11]} 33. Bxe1 {[%emt 0:00:
07]} Bf5 {[%emt 0:00:35]} 34. Bc3 {[%emt 0:00:51]} Kh7 {[%emt 0:00:10]} 35. g4
{[%emt 0:00:16]} Be6 {[%emt 0:00:01]} 36. Ke3 {[%emt 0:00:04]} Kg8 {[%emt 0:01:
12]} 37. Qf4 {[%emt 0:00:34]} Qc2 {[%emt 0:02:11]} 38. Qd4 {[%emt 0:00:31]} Qg6
{[%emt 0:00:19]} 39. Qf4 {[%emt 0:00:01]} Bf7 {[%emt 0:00:00]} 40. Kd2 {[%emt
0:00:12]} Be6 {[%emt 0:00:47]} 41. h4 {[%emt 0:00:21]} Qf7 {[%emt 0:00:39]}
1/2-1/2

[Event "16th EWICC 2015"]
[Site "Kutaisi"]
[Date "2015.06.01"]
[Round "2"]
[White "Gvetadze, Sofio"]
[Black "Kosteniuk, Alexandra"]
[Result "1-0"]
[ECO "B30"]
[WhiteElo "2319"]
[BlackElo "2530"]
[Annotator "Robot 11"]
[PlyCount "81"]
[EventDate "2015.??.??"]
[EventCountry "GEO"]
[TimeControl "900+10"]

1. e4 {[%emt 0:00:02]} c5 {[%emt 0:00:01]} 2. Nf3 {[%emt 0:00:02]} Nc6 {[%emt
0:00:01]} 3. Bb5 {[%emt 0:00:09]} Nf6 {[%emt 0:00:02]} 4. Nc3 {[%emt 0:00:07]}
g6 {[%emt 0:00:20]} 5. O-O {[%emt 0:00:26]} Bg7 {[%emt 0:00:03]} 6. Bxc6 {
[%emt 0:00:24]} bxc6 {[%emt 0:00:01]} 7. d3 {[%emt 0:00:20]} O-O {[%emt 0:00:
13]} 8. h3 {[%emt 0:00:12]} Rb8 {[%emt 0:00:37]} 9. Rb1 {[%emt 0:01:40]} d6 {
[%emt 0:00:35]} 10. Be3 {[%emt 0:01:15]} Nd7 {[%emt 0:00:27]} 11. Qd2 {[%emt 0:
00:32]} Re8 {[%emt 0:00:12]} 12. Bh6 {[%emt 0:01:18]} Bh8 {[%emt 0:00:04]} 13.
Ng5 {[%emt 0:00:15]} Nf8 {[%emt 0:00:47]} 14. f4 {[%emt 0:01:34]} f6 {[%emt 0:
00:33]} 15. Nf3 {[%emt 0:00:35]} f5 {[%emt 0:02:44]} 16. Kh1 {[%emt 0:01:32]}
e6 {[%emt 0:06:39]} 17. Qf2 {[%emt 0:00:30]} Bg7 {[%emt 0:00:24]} 18. Bxg7 {
[%emt 0:00:13]} Kxg7 {[%emt 0:00:00]} 19. e5 {[%emt 0:00:05]} d5 {[%emt 0:01:
03]} 20. Qxc5 {[%emt 0:00:08]} Qb6 {[%emt 0:00:00]} 21. Qa3 {[%emt 0:03:07]}
Nd7 {[%emt 0:00:20]} 22. b3 {[%emt 0:00:44]} c5 {[%emt 0:00:13]} 23. Qc1 {
[%emt 0:00:06]} d4 {[%emt 0:00:07]} 24. Ne2 {[%emt 0:00:17]} Bb7 {[%emt 0:00:
01]} 25. Qe1 {[%emt 0:00:03]} Qd8 {[%emt 0:00:22]} 26. c4 {[%emt 0:00:42]} dxc3
{[%emt 0:00:14]} 27. Qxc3 {[%emt 0:00:09]} Rc8 {[%emt 0:00:22]} 28. d4 {[%emt
0:00:38]} Qb6 {[%emt 0:00:17]} 29. Rbd1 {[%emt 0:00:15]} cxd4 {[%emt 0:00:06]}
30. Qxd4 {[%emt 0:00:02]} Nc5 {[%emt 0:00:55]} 31. b4 {[%emt 0:00:13]} Ne4 {
[%emt 0:00:30]} 32. Qxb6 {[%emt 0:00:07]} axb6 {[%emt 0:00:01]} 33. Rd7+ {
[%emt 0:00:01]} Kg8 {[%emt 0:00:01]} 34. Rxb7 {[%emt 0:00:01]} Rc2 {[%emt 0:00:
01]} 35. Nfg1 {[%emt 0:00:09]} Rxa2 {[%emt 0:00:06]} 36. Rc1 {[%emt 0:00:17]}
g5 {[%emt 0:00:59]} 37. Rcc7 {[%emt 0:00:26]} gxf4 {[%emt 0:00:11]} 38. Rg7+ {
[%emt 0:00:02]} Kh8 {[%emt 0:00:01]} 39. Rxh7+ {[%emt 0:00:05]} Kg8 {[%emt 0:
00:00]} 40. Rbg7+ {[%emt 0:00:09]} Kf8 {[%emt 0:00:01]} 41. Nxf4 {[%emt 0:00:
05]} 1-0

[Event "16th EWICC 2015"]
[Site "Kutaisi"]
[Date "2015.06.01"]
[Round "2"]
[White "Javakhishvili, Lela"]
[Black "Melia, Salome"]
[Result "1/2-1/2"]
[ECO "A45"]
[WhiteElo "2472"]
[BlackElo "2452"]
[Annotator "Robot 11"]
[PlyCount "32"]
[EventDate "2015.??.??"]
[EventCountry "GEO"]
[TimeControl "900+10"]

1. d4 {[%emt 0:00:02]} Nf6 {[%emt 0:00:01]} 2. Bg5 {[%emt 0:00:05]} c5 {[%emt
0:00:01]} 3. d5 {[%emt 0:00:08]} Ne4 {[%emt 0:00:03]} 4. Bc1 {[%emt 0:00:05]}
e6 {[%emt 0:00:23]} 5. c4 {[%emt 0:00:11]} exd5 {[%emt 0:00:56]} 6. cxd5 {
[%emt 0:00:11]} Bd6 {[%emt 0:00:20]} 7. Nc3 {[%emt 0:01:15]} Qh4 {[%emt 0:02:
18]} 8. g3 {[%emt 0:03:22]} Nxc3 {[%emt 0:00:50]} 9. bxc3 {[%emt 0:00:03]} Qc4
{[%emt 0:00:15]} 10. Bb2 {[%emt 0:00:46]} b5 {[%emt 0:03:05]} 11. e3 {[%emt 0:
02:48]} Qe4 {[%emt 0:00:07]} 12. Qf3 {[%emt 0:00:19]} Qc2 {[%emt 0:00:56]} 13.
Qe2 {[%emt 0:00:09]} Qe4 {[%emt 0:00:53]} 14. Qf3 {[%emt 0:01:44]} Qc2 {[%emt
0:00:02]} 15. Qe2 {[%emt 0:00:03]} Qe4 {[%emt 0:01:38]} 16. Qf3 {[%emt 0:00:32]
} Qc2 {[%emt 0:00:12]} 1/2-1/2

[Event "16th EWICC 2015"]
[Site "Kutaisi"]
[Date "2015.06.01"]
[Round "2"]
[White "Khmiadashvili, Tamar"]
[Black "Tereladze, Sopiko"]
[Result "0-1"]
[ECO "D02"]
[WhiteElo "2043"]
[BlackElo "2128"]
[Annotator "Robot 11"]
[PlyCount "98"]
[EventDate "2015.??.??"]
[EventCountry "GEO"]
[TimeControl "900+10"]

1. d4 {[%emt 0:00:01]} d5 {[%emt 0:00:09]} 2. Nf3 {[%emt 0:00:02]} Nf6 {[%emt
0:00:02]} 3. b3 {[%emt 0:00:04]} Nbd7 {[%emt 0:00:17]} 4. Bb2 {[%emt 0:00:01]}
e6 {[%emt 0:00:01]} 5. Nbd2 {[%emt 0:00:03]} c5 {[%emt 0:00:11]} 6. e3 {[%emt
0:00:02]} Bd6 {[%emt 0:00:31]} 7. Ne5 {[%emt 0:00:10]} Qc7 {[%emt 0:00:12]} 8.
f4 {[%emt 0:00:15]} cxd4 {[%emt 0:00:50]} 9. exd4 {[%emt 0:00:06]} Bb4 {[%emt
0:00:15]} 10. c3 {[%emt 0:01:24]} Bxc3 {[%emt 0:00:54]} 11. Rc1 {[%emt 0:00:01]
} Bxd2+ {[%emt 0:00:01]} 12. Qxd2 {[%emt 0:00:02]} Qd6 {[%emt 0:00:16]} 13. Qa5
{[%emt 0:00:55]} Qb6 {[%emt 0:05:35]} 14. Qxb6 {[%emt 0:00:21]} Nxb6 {[%emt 0:
01:01]} 15. Ba3 {[%emt 0:00:28]} Nfd7 {[%emt 0:00:27]} 16. Kd2 {[%emt 0:01:28]}
Nxe5 {[%emt 0:00:16]} 17. fxe5 Bd7 18. Bd3 {[%emt 0:00:27]} Bc6 {[%emt 0:00:33]
} 19. Rhf1 {[%emt 0:00:45]} Rc8 {[%emt 0:02:57]} 20. Bb4 {[%emt 0:01:05]} Nd7 {
[%emt 0:00:29]} 21. Rce1 {[%emt 0:01:27]} Nb8 {[%emt 0:01:04]} 22. Rc1 {[%emt
0:01:53]} Nd7 {[%emt 0:00:02]} 23. a4 {[%emt 0:00:19]} f5 {[%emt 0:00:19]} 24.
Bd6 {[%emt 0:00:39]} Kf7 {[%emt 0:00:06]} 25. g4 {[%emt 0:00:15]} g6 {[%emt 0:
00:06]} 26. Rf2 {[%emt 0:01:18]} h5 {[%emt 0:00:07]} 27. gxf5 {[%emt 0:00:14]}
gxf5 {[%emt 0:00:12]} 28. Rcf1 {[%emt 0:00:19]} Rcg8 {[%emt 0:00:15]} 29. a5 {
[%emt 0:01:42]} a6 {[%emt 0:00:25]} 30. Kc3 {[%emt 0:00:08]} h4 {[%emt 0:00:31]
} 31. Kb4 {[%emt 0:00:30]} Rg4 {[%emt 0:00:06]} 32. Rf4 {[%emt 0:00:37]} Rhg8 {
[%emt 0:00:06]} 33. Be2 {[%emt 0:00:23]} Rxf4 {[%emt 0:00:47]} 34. Bh5+ {[%emt
0:00:21]} Kg7 {[%emt 0:00:04]} 35. Rxf4 {[%emt 0:00:04]} Kh6 {[%emt 0:00:43]}
36. Bf7 {[%emt 0:01:11]} Rg4 {[%emt 0:00:11]} 37. Rf2 {[%emt 0:00:58]} Rxd4+ {
[%emt 0:00:06]} 38. Kc3 {[%emt 0:00:01]} Re4 {[%emt 0:00:10]} 39. Bxe6 {[%emt
0:00:05]} d4+ {[%emt 0:00:01]} 40. Kd2 {[%emt 0:00:17]} Nxe5 {[%emt 0:00:23]}
41. Bxf5 {[%emt 0:00:38]} Re3 {[%emt 0:00:00]} 42. Bxe5 {[%emt 0:00:28]} Rxe5 {
[%emt 0:00:01]} 43. Bd3 {[%emt 0:00:03]} Rxa5 {[%emt 0:00:04]} 44. Rf6+ {[%emt
0:00:11]} Kg5 {[%emt 0:00:03]} 45. Rg6+ {[%emt 0:00:13]} Kf4 {[%emt 0:00:02]}
46. Rf6+ {[%emt 0:00:06]} Kg4 {[%emt 0:00:09]} 47. Rg6+ {[%emt 0:00:21]} Kh3 {
[%emt 0:00:07]} 48. Bc2 {[%emt 0:00:19]} Ra2 {[%emt 0:00:04]} 49. Kc1 {[%emt 0:
00:04]} Rxc2+ {[%emt 0:00:02]} 0-1